bitfinex/quotes_ETHUSD_20250815
["timestamp","ask_amount","ask_price","bid_price","bid_amount"]
[1755279909436,0.4281,4456.3,4455.0,0.6231]
[1755279909600,2.24431626,4455.7,4455.1,3.725]
[1755279909914,0.112,4455.8,4454.6,2.2458549]
[1755279909915,0.112,4455.5,4454.6,3.725]
[1755279910079,2.24454317,4455.3,4454.6,3.837]
[1755279910284,2.24456814,4455.2,4454.6,3.837]
[1755279910494,0.112,4455.1,4454.6,3.837]
[1755279911127,0.112,4455.1,4454.6,3.725]
[1755279911427,2.78472117,4455.1,4454.6,3.725]
[1755279911578,2.24467281,4455.0,4454.6,3.725]
[1755279911785,2.24466891,4455.0,4454.6,3.725]
[1755279912086,2.67277587,4455.0,4454.6,3.725]
[1755279912289,2.24473392,4454.9,4454.6,3.725]
[1755279912503,0.4281,4454.8,4454.6,3.725]
[1755279912718,2.35682007,4454.7,4454.6,3.725]
[1755279912907,2.78492007,4454.7,4454.6,0.001]
[1755279916183,2.35682007,4454.7,4454.6,0.001]
[1755279916887,3.02060208,4454.7,4454.6,0.001]
[1755279918839,6.02060208,4454.7,4454.6,1e-08]
[1755279919333,9.72360208,4454.7,4454.6,1e-08]
[1755279919693,0.77578201,4454.7,4454.6,1e-08]
[1755279919909,0.112,4454.7,4454.6,1e-08]
[1755279920333,0.112,4454.7,4454.6,1.08740001]
[1755279920550,0.112,4454.7,4454.6,3.33227048]
[1755279920709,8.06071179,4457.1,4455.7,2.24430872]
[1755279921034,2.35460589,4457.6,4456.1,0.112]
[1755279921035,0.112,4456.7,4456.1,0.112]
[1755279921220,0.4281,4458.0,4456.6,0.112]
[1755279921422,0.50053161,4457.9,4456.7,0.6231]
[1755279921597,2.24352211,4457.3,4456.7,0.6231]
[1755279921929,0.4281,4457.4,4456.0,0.6231]
[1755279922129,0.112,4456.4,4456.0,0.6231]
[1755279922533,2.24409275,4456.2,4455.8,3.823]
[1755279922740,0.23560928,4456.1,4455.8,3.711]
[1755279923030,2.24409275,4456.2,4455.8,3.711]
[1755279923231,0.112,4456.4,4455.9,0.6231]
[1755279923429,0.112,4456.4,4455.9,0.4643]
[1755279923751,0.4281,4458.5,4456.0,1.10984165]
[1755279923970,0.112,4457.4,4456.9,2.24370609]
[1755279924138,0.112,4457.4,4457.0,4.7964]
[1755279924464,0.112,4457.4,4457.0,4.3321]
[1755279924659,0.112,4457.4,4457.1,1.0874]
[1755279924864,0.112,4457.6,4457.1,1.0874]
[1755279925063,0.112,4457.6,4457.1,0.4643]
[1755279925228,0.112,4457.6,4457.2,0.6231]
[1755279925427,0.3475307,4457.6,4457.1,3.706]
[1755279925761,0.112,4457.2,4456.8,3.705]
[1755279926063,2.24364238,4457.1,4456.8,3.705]
[1755279926262,2.24364238,4457.1,4456.8,4.3281]
[1755279926673,6.704,4458.2,4456.8,4.3281]
[1755279926674,2.2429068,4458.5,4456.9,1.0874]
[1755279926829,0.112,4457.6,4457.0,0.112]
[1755279927034,0.112,4457.6,4457.0,0.7351]
[1755279927231,0.112,4457.6,4457.1,2.24361131]
[1755279927534,0.112,4458.6,4457.5,0.112]
[1755279927730,0.112,4458.8,4457.6,4.7884]
[1755279927977,0.112,4458.8,4458.2,0.112]
[1755279928139,0.112,4458.8,4457.6,4.1653]
[1755279928140,2.24281624,4458.7,4457.7,0.6231]
[1755279928341,0.112,4458.8,4457.9,0.112]
[1755279928342,0.23548162,4458.6,4457.9,0.112]
[1755279928644,0.23548162,4458.6,4457.7,0.7351]
[1755279928645,2.24306161,4458.2,4457.7,0.7351]
[1755279928844,2.24323022,4457.9,4457.7,0.112]
[1755279929036,0.112,4458.3,4457.6,3.701]
[1755279929037,2.24330313,4457.8,4457.6,3.701]
[1755279929242,0.112,4458.3,4457.6,3.701]
[1755279929441,0.60102124,4460.2,4460.0,2.24215246]
[1755279929687,0.112,4461.3,4460.0,2.24215246]
[1755279929843,2.24158662,4461.2,4460.0,1.5624383]
[1755279930027,0.112,4460.3,4460.0,1.4504383]
[1755279930227,0.112,4460.3,4459.7,0.112]
[1755279930828,0.4301,4460.1,4459.3,3.79]
[1755279931063,0.112,4459.9,4459.3,3.902]
[1755279931370,0.4301,4460.1,4459.3,3.79]
[1755279931558,0.112,4459.6,4458.6,3.79]
[1755279931869,2.24215729,4460.0,4458.9,0.112]
[1755279932075,2.46662966,4459.9,4458.9,0.112]
[1755279932228,0.22441573,4459.9,4458.9,0.112]
[1755279932429,0.4281,4459.8,4458.9,0.112]
[1755279932671,0.112,4459.0,4458.6,0.6231]
[1755279932828,0.112,4459.5,4458.9,0.112]
[1755279933027,0.112,4459.5,4458.9,2.35470425]
[1755279933226,0.112,4459.5,4458.9,0.112]
[1755279933830,0.112,4459.5,4458.9,3.9]
[1755279934664,0.34742655,4459.5,4458.9,3.9]
[1755279934970,0.112,4459.5,4458.9,3.9]
[1755279936902,0.112,4459.5,4458.9,0.112]
[1755279937115,0.4702,4459.7,4458.3,0.112]
[1755279937404,0.002,4460.1,4458.9,2.24268572]
[1755279937615,0.002,4460.1,4458.5,3.0]
[1755279937616,0.002,4460.1,4460.0,2.24215246]
[1755279937748,0.002,4460.1,4460.0,2.46636771]
[1755279937949,0.002,4460.1,4460.0,3.53766771]
[1755279938180,0.002,4460.1,4460.0,6.53766771]
[1755279940007,1e-08,4460.1,4460.0,7.08766771]
[1755279940238,11.27,4463.4,4460.0,7.08766771]
[1755279940239,0.60102124,4465.0,4461.4,3.55]
[1755279940356,2.24013954,4464.1,4462.3,2.24097882]
[1755279940555,2.24054485,4463.3,4461.4,0.601]
[1755279940783,0.4702,4463.2,4461.4,0.601]
[1755279940986,0.4702,4463.2,4461.0,3.794]
[1755279941206,2.00156753,4467.0,4461.0,3.794]
[1755279941490,0.4702,4465.7,4461.7,2.24129815]
[1755279941664,0.4702,4465.7,4461.1,10.28529557]
[1755279941665,2.24008757,4464.2,4461.9,3.0]
[1755279941859,1.6618,4465.6,4462.0,0.601]
[1755279941860,0.69420876,4464.1,4462.0,0.601]
[1755279942055,0.69420876,4464.1,4461.8,2.18879712]
[1755279942056,4.157,4464.0,4461.8,2.18879712]
[1755279942289,3.0,4463.8,4461.8,2.18879712]
[1755279942494,3.31029392,4463.7,4461.8,2.18879712]
[1755279942656,0.4702,4463.6,4461.8,2.18879712]
[1755279942888,0.673389,4465.3,4462.0,2.24114746]
[1755279942889,0.4702,4464.9,4462.0,2.24114746]
[1755279943122,0.4702,4464.9,4462.1,0.601]
[1755279943322,5.23979214,4464.7,4462.0,2.18890867]
[1755279943636,5.365,4464.2,4462.0,2.18890867]
[1755279943836,1.07,4464.1,4462.0,2.18890867]
[1755279943995,2.24081533,4462.7,4462.0,2.18890867]
[1755279944191,2.24094657,4462.4,4458.5,2.24289036]
[1755279944439,3.0,4462.2,4459.7,2.24226945]
[1755279944589,2.24142069,4461.5,4459.5,0.601]
[1755279944794,0.22414207,4461.4,4459.5,0.601]
[1755279945088,0.4702,4461.3,4459.5,0.601]
[1755279945294,2.24154935,4461.2,4458.9,2.24269089]
[1755279945493,2.24179707,4460.8,4458.8,2.84375212]
[1755279945797,0.4702,4460.7,4459.3,2.24247673]
[1755279946001,0.4702,4460.7,4458.8,0.601]
[1755279946002,0.4702,4460.7,4458.9,0.28437521]
[1755279946227,0.4702,4460.7,4458.8,0.601]
[1755279946426,2.24191607,4460.5,4458.5,2.24288446]
[1755279946625,2.24205024,4460.3,4458.5,2.24288446]
[1755279946827,0.4702,4460.4,4458.1,0.601]
[1755279947128,4.6302,4460.4,4458.2,1.0713]
[1755279947336,0.68720609,4460.3,4458.3,1.0713]
[1755279947539,4.16,4460.5,4460.0,0.112]
[1755279948945,4.6302,4460.5,4460.0,0.112]
[1755279949091,4.16,4460.5,4460.0,0.112]
[1755279949294,2.24216524,4460.0,4458.4,0.601]
[1755279949545,0.112,4459.6,4459.0,0.112]
[1755279950327,0.4702,4461.3,4459.6,2.24230353]
[1755279950532,0.112,4460.6,4460.0,0.112]
[1755279950695,0.112,4460.9,4460.2,0.112]
[1755279951730,0.112,4461.1,4460.5,0.112]
[1755279951893,0.4702,4462.1,4460.3,0.601]
[1755279952089,0.112,4461.9,4461.3,0.112]
[1755279952729,4.14,4462.6,4461.2,2.24151436]
[1755279952940,0.002,4461.5,4461.2,2.24151436]
[1755279953121,0.002,4461.5,4460.1,0.601]
[1755279953321,0.002,4461.5,4461.0,0.112]
[1755279953496,0.002,4461.5,4461.4,0.112]
[1755279953699,0.002,4461.5,4461.4,2.24144887]
[1755279953898,0.002,4461.5,4461.4,1.16129748]
[1755279954100,0.002,4461.5,4461.4,0.713]
[1755279954422,0.002,4461.5,4461.4,2.95444887]
[1755279954932,0.002,4461.5,4461.4,0.713]
[1755279955119,0.002,4461.5,4460.5,0.601]
[1755279955340,0.5842,4461.5,4459.8,0.601]
[1755279955527,0.5842,4461.5,4460.7,0.112]
[1755279955931,2.82560347,4461.5,4460.7,0.112]
[1755279956268,0.4702,4461.4,4458.9,0.601]
[1755279956554,0.112,4460.5,4459.8,0.112]
[1755279956760,0.5998,4461.3,4458.7,0.601]
[1755279956919,2.24215439,4460.0,4458.9,2.24269894]
[1755279957121,2.24215439,4460.0,4458.7,2.84380153]
[1755279957335,0.4702,4460.3,4459.2,2.24253903]
[1755279957662,2.24220815,4459.9,4458.8,2.24272013]
[1755279958250,2.24214586,4460.1,4458.9,2.24265925]
[1755279958568,2.24221331,4459.9,4458.9,2.24265925]
[1755279958972,4.24211299,4463.2,4458.8,0.50875909]
[1755279958973,0.5197,4461.2,4458.8,0.50875909]
[1755279959171,1.07,4461.1,4459.0,2.84364722]
[1755279959380,2.24189248,4460.6,4459.3,2.24247896]
[1755279959539,2.24190565,4460.5,4459.3,2.24247896]
[1755279959737,2.24185813,4460.6,4459.3,2.24248993]
[1755279959975,0.4702,4460.6,4459.0,0.601]
[1755279960180,3.0,4460.4,4458.5,0.001]
[1755279960362,3.0,4460.0,4458.5,0.001]
[1755279960538,0.1641756,4460.0,4458.5,0.001]
[1755279960737,2.2428565,4458.6,4458.5,0.001]
[1755279961055,2.41102025,4458.6,4458.5,0.001]
[1755279961260,4.35830048,4458.6,4458.5,0.001]
[1755279961441,8.30613673,4458.6,4458.5,0.001]
[1755279961638,3.59033673,4458.6,4458.5,0.001]
[1755279961840,1.2028071,4459.9,4458.5,0.001]
[1755279961841,0.16699167,4459.8,4458.5,0.001]
[1755279962042,0.4702,4460.0,4458.5,0.602]
[1755279962278,2.24242849,4459.5,4458.5,0.001]
[1755279962480,2.2428565,4458.6,4458.5,0.001]
[1755279962859,2.7130565,4458.6,4458.5,0.001]
[1755279963058,4.122,4459.6,4458.5,0.001]
[1755279963285,0.95087829,4460.0,4458.5,0.602]
[1755279963485,0.4702,4460.0,4458.7,2.24280514]
[1755279963687,0.4702,4460.0,4458.8,0.28448051]
[1755279963992,0.4702,4460.0,4458.5,0.602]
[1755279964190,2.24239503,4459.6,4458.5,0.602]
[1755279964489,2.24258713,4459.2,4458.5,0.001]
[1755279964649,0.4702,4459.5,4458.5,0.001]
[1755279964853,2.24266363,4459.0,4458.5,0.001]
[1755279965054,0.4702,4459.5,4458.5,0.001]
[1755279965254,0.4702,4459.4,4458.5,0.001]
[1755279965486,4.116,4459.7,4458.5,0.001]
[1755279965855,2.24267928,4459.0,4458.5,0.001]
[1755279966176,2.24260748,4459.1,4458.5,0.001]
[1755279966378,2.2428565,4458.6,4458.5,0.001]
[1755279966791,3.5775565,4458.6,4458.5,0.001]
[1755279967411,2.24300742,4458.3,4458.1,0.001]
[1755279967588,2.24305773,4458.2,4458.1,0.001]
[1755279967757,7.38470066,4458.2,4458.1,1e-08]
[1755279967977,7.86536483,4458.2,4458.1,1e-08]
[1755279968316,2.24330932,4457.7,4457.6,1e-08]
[1755279968516,2.24330932,4457.7,4457.5,1e-08]
[1755279968517,5.24335965,4457.6,4457.5,1e-08]
[1755279968821,8.34075056,4457.6,4457.5,1e-08]
[1755279968983,8.89075056,4457.6,4457.5,1e-08]
[1755279969183,12.44175056,4457.6,4457.5,1e-08]
[1755279969385,8.34075056,4457.6,4457.5,1e-08]
[1755279969602,7.86085011,4457.6,4457.5,1e-08]
[1755279969802,11.96085011,4457.6,4457.5,1e-08]
[1755279970512,7.86085011,4457.6,4457.5,1e-08]
[1755279970707,12.98695327,4457.6,4457.5,1e-08]
[1755279970909,7.60861131,4457.1,4457.0,1e-08]
[1755279971214,6.52882604,4457.1,4457.0,1e-08]
[1755279971411,11.95452604,4457.1,4457.0,1e-08]
[1755279972414,7.86352604,4457.1,4457.0,1e-08]
[1755279972611,11.18842604,4457.1,4457.0,1e-08]
[1755279972812,12.50052604,4457.1,4457.0,1e-08]
[1755279973382,11.18442604,4457.1,4457.0,1e-08]
[1755279973578,11.94652604,4457.1,4457.0,1e-08]
[1755279975318,12.49652604,4457.1,4457.0,1e-08]
[1755279976020,12.48752604,4457.1,4457.0,1e-08]
[1755279977121,12.48152604,4457.1,4457.0,1e-08]
[1755279977520,7.10142604,4457.1,4457.0,1e-08]
[1755279977817,11.16642604,4457.1,4457.0,1e-08]
[1755279978218,7.10142604,4457.1,4457.0,1e-08]
[1755279978420,2.35561131,4457.1,4457.0,1e-08]
[1755279978624,6.41561131,4457.1,4457.0,1e-08]
[1755279978802,2.35561131,4457.1,4457.0,1e-08]
[1755279979202,4.17,4457.1,4457.0,0.73060001]
[1755279979725,6.41361131,4457.1,4457.0,0.73060001]
[1755279979929,4.17,4457.1,4457.0,0.73060001]
[1755279980231,6.41361131,4457.1,4457.0,0.73060001]
[1755279980433,4.167,4457.1,4457.0,0.73060001]
[1755279980637,6.41061131,4457.1,4457.0,1e-08]
[1755279980811,6.41061131,4457.1,4457.0,0.73060001]
[1755279980812,4.163,4457.1,4457.0,0.73060001]
[1755279981013,6.40661131,4457.1,4457.0,0.73060001]
[1755279981323,0.112,4457.1,4457.0,0.73060001]
[1755279981523,4.047,4457.2,4457.0,1.17000001]
[1755279981711,6.2906058,4457.2,4457.1,0.7306]
[1755279981911,2.24361131,4457.1,4457.0,1e-08]
[1755279982126,2.35561131,4457.1,4457.0,1e-08]
[1755279983618,3.68082406,4457.1,4457.0,1e-08]
[1755279983940,7.25822406,4457.1,4457.0,1e-08]
[1755279984129,6.39261131,4457.1,4457.0,1e-08]
[1755279986542,6.85321131,4457.1,4457.0,1e-08]
[1755279987516,9.85321131,4457.1,4457.0,1e-08]
[1755279987712,11.16531131,4457.1,4457.0,1e-08]
[1755279988019,2.24406444,4456.2,4456.1,0.001]
[1755279988218,9.82587027,4456.2,4456.1,0.001]
[1755279988812,9.82387027,4456.2,4456.1,0.001]
[1755279989354,9.81987027,4456.2,4456.1,0.001]
[1755279990950,10.28047027,4456.2,4456.1,0.001]
[1755279992052,10.16847027,4456.2,4456.1,0.001]
[1755279992255,5.90170306,4456.2,4456.1,0.001]
[1755279992558,6.24506444,4456.2,4456.1,1.171]
[1755279992730,2.24405459,4456.3,4456.1,1.171]
[1755279992976,2.24538761,4457.6,4456.1,0.001]
[1755279992977,6.24406444,4456.2,4456.1,0.001]
[1755279993498,6.24406444,4456.2,4456.1,0.7316]
[1755279993499,4.0,4456.2,4456.1,0.7316]
[1755279993657,4.0,4456.2,4456.1,1.171]
[1755279993658,3.996,4456.2,4456.1,1.171]
[1755279993860,0.48324539,4457.6,4456.1,1.2881]
[1755279994155,2.24350892,4457.4,4456.2,1.17]
[1755279994359,2.24345785,4457.5,4456.6,2.24385221]
[1755279994557,3.995,4457.4,4456.7,1.17]
[1755279994879,2.24355595,4457.3,4456.8,1.17]
[1755279995062,6.2384723,4457.4,4456.8,1.17]
[1755279995511,2.2435224,4457.3,4456.8,1.17]
[1755279995677,3.995,4457.4,4456.9,0.7306]
[1755279995993,2.24362735,4457.1,4456.9,0.7306]
[1755279996161,6.23266165,4457.0,4456.9,0.7306]
[1755279997360,3.989,4457.0,4456.2,0.4394]
[1755279997580,2.24390824,4456.6,4456.2,0.6832]
[1755279997781,3.981,4456.5,4456.2,0.6832]
[1755279997999,3.981,4456.5,4456.1,0.001]
[1755279998000,3.981,4456.5,4456.3,0.6832]
[1755279998298,6.2249535,4456.5,4456.3,0.6832]
[1755279998872,3.981,4456.5,4456.3,0.6832]
[1755279999806,3.981,4456.5,4456.1,0.001]
[1755279999807,6.22495426,4456.5,4456.1,0.001]
[1755279999979,3.981,4456.5,4456.1,0.001]
[1755280000184,2.24398359,4456.4,4456.1,0.6842]
[1755280000388,3.981,4456.5,4456.1,0.6842]
[1755280000589,2.24396416,4456.4,4456.1,0.6842]
[1755280000792,2.24403603,4456.3,4456.1,0.6842]
[1755280000992,6.21306444,4456.2,4456.1,0.001]
[1755280001322,7.05477023,4456.2,4456.1,0.001]
[1755280001996,7.59917023,4456.2,4456.1,0.001]
[1755280002573,7.80875045,4456.2,4456.1,0.001]
[1755280002806,9.03527684,4456.2,4456.1,0.001]
[1755280003035,12.03527684,4456.2,4455.4,0.001]
[1755280003200,2.24441701,4455.5,4455.4,0.001]
[1755280003400,6.41100181,4455.5,4455.4,0.001]
[1755280003596,8.0699282,4455.5,4455.4,0.001]
[1755280003997,7.0048282,4455.5,4455.4,0.001]
[1755280004202,7.4372282,4455.5,4455.4,0.001]
[1755280004389,8.40538567,4455.5,4455.4,0.001]
[1755280004589,9.14908567,4455.5,4455.4,0.001]
[1755280004827,12.35863206,4455.5,4455.4,1e-08]
[1755280004991,12.90863331,4455.5,4455.4,1e-08]
[1755280005194,13.70730056,4455.5,4455.4,1e-08]
[1755280005493,16.07230056,4455.5,4455.4,1e-08]
[1755280005918,13.70730056,4455.5,4455.4,1e-08]
[1755280006629,14.25763331,4455.5,4455.4,1e-08]
[1755280006796,14.38321674,4455.5,4455.4,1e-08]
[1755280007135,46.74821674,4455.5,4455.4,1e-08]
[1755280007325,46.74821674,4455.5,4454.6,1e-08]
[1755280007326,2.79482007,4454.7,4454.6,1e-08]
[1755280007630,10.56536155,4454.7,4454.6,1e-08]
[1755280007826,12.22428794,4454.7,4454.6,1e-08]
[1755280008032,2.24522328,4453.9,4453.8,0.001]
[1755280008201,3.0,4453.8,4453.3,0.001]
[1755280008393,6.53337369,4453.8,4453.3,0.001]
[1755280008592,8.27948501,4453.8,4453.7,1e-08]
[1755280008792,8.48842914,4453.8,4453.7,1e-08]
[1755280009111,8.68525444,4453.8,4453.7,1e-08]
[1755280009516,9.23525444,4453.8,4453.7,1e-08]
[1755280009711,13.17325444,4453.8,4453.7,1e-08]
[1755280010605,12.22061031,4453.8,4453.7,1e-08]
[1755280010802,7.10338501,4453.8,4453.7,1e-08]
[1755280011006,6.28927369,4453.8,4453.7,0.68320001]
[1755280011210,6.28927369,4453.8,4453.7,1e-08]
[1755280011592,6.72167369,4453.8,4453.7,1e-08]
[1755280011837,11.01537369,4453.8,4453.7,1e-08]
[1755280012140,2.24542494,4453.5,4453.4,1e-08]
[1755280012303,10.68340712,4453.5,4453.4,1e-08]
[1755280012491,2.35742494,4453.5,4453.4,0.68320001]
[1755280012697,6.28742494,4453.5,4453.4,0.68320001]
[1755280013109,4.042,4453.5,4453.4,0.68320001]
[1755280013311,6.28742494,4453.5,4453.4,0.68320001]
[1755280014498,6.28742494,4453.5,4453.4,1e-08]
[1755280016794,6.27842494,4453.5,4453.4,1e-08]
[1755280017133,7.56320129,4453.5,4453.4,1e-08]
[1755280017606,7.12480129,4453.5,4453.4,1e-08]
[1755280018233,7.12280129,4453.5,4453.4,1e-08]
[1755280018632,2.24547536,4453.4,4453.3,1e-08]
[1755280018944,5.24547536,4453.4,4453.3,1e-08]
[1755280019147,10.22453688,4453.4,4453.3,1e-08]
[1755280020309,10.65693688,4453.4,4453.3,1e-08]
[1755280020539,10.22453688,4453.4,4453.3,1e-08]
[1755280020723,10.65693688,4453.4,4453.3,1e-08]
[1755280021438,5.24552578,4453.3,4453.0,1e-08]
[1755280021748,2.35762664,4453.1,4453.0,1e-08]
[1755280022244,6.25662664,4453.1,4453.0,1e-08]
[1755280022810,6.68902664,4453.1,4453.0,1e-08]
[1755280023016,7.99515703,4453.1,4453.0,1e-08]
[1755280023418,7.99515703,4453.1,4452.0,0.001]
[1755280023419,5.24567707,4453.0,4452.5,1e-08]
[1755280023665,2.24587881,4452.6,4452.5,1e-08]
[1755280023863,6.25187881,4452.6,4452.5,1e-08]
[1755280024216,6.68427881,4452.6,4452.5,1e-08]
[1755280024417,6.68427881,4452.6,4452.0,0.001]
[1755280024418,2.24613103,4452.1,4452.0,0.001]
[1755280024618,6.13913103,4452.1,4452.0,0.001]
[1755280024819,2.35813103,4452.1,4452.0,1.1226]
[1755280025053,6.24713103,4452.1,4452.0,1.1226]
[1755280025251,6.24713103,4452.1,4452.0,0.6842]
[1755280025621,7.09645012,4452.1,4452.0,0.001]
[1755280026022,6.24713103,4452.1,4452.0,0.001]
[1755280026632,6.24213103,4452.1,4452.0,0.6759]
[1755280026954,6.24213103,4452.1,4452.0,1.1353]
[1755280027163,6.24213103,4452.1,4452.0,0.6759]
[1755280027725,2.24653489,4451.3,4450.9,0.4594]
[1755280028028,3.883,4451.2,4450.9,0.4594]
[1755280028227,0.112,4451.5,4450.8,0.112]
[1755280028228,3.88,4451.4,4451.0,0.4594]
[1755280028430,0.112,4451.9,4451.3,0.112]
[1755280028631,3.88,4452.1,4451.5,2.24638984]
[1755280028830,3.88,4452.2,4451.8,0.112]
[1755280029061,3.88,4452.2,4449.2,0.2082023]
[1755280029062,3.88,4452.8,4452.0,0.112]
[1755280029267,3.88,4452.7,4451.9,0.7249]
[1755280029448,2.24577339,4452.9,4452.0,0.4594]
[1755280029626,0.429,4453.9,4452.1,1.17995232]
[1755280029627,0.112,4452.7,4452.1,1.17995232]
[1755280029822,2.24597586,4452.5,4452.1,0.8369]
[1755280030022,2.24597586,4452.5,4450.7,3.0]
[1755280030023,3.884,4452.6,4451.7,0.7249]
[1755280030257,2.2462824,4451.8,4451.7,0.7249]
[1755280030637,3.884,4451.9,4451.7,0.7249]
[1755280030837,0.112,4452.2,4451.7,0.7249]
[1755280030838,0.112,4452.2,4451.7,1.1843]
[1755280031180,2.24623194,4451.9,4451.8,0.7249]
[1755280031531,2.2462824,4451.8,4451.2,0.7249]
[1755280031737,2.24678709,4450.8,4450.7,0.112]
[1755280031937,0.112,4451.3,4450.7,0.8369]
[1755280031938,3.882,4451.0,4450.7,0.8369]
[1755280032186,2.24688806,4450.6,4450.5,0.001]
[1755280032339,6.23888806,4450.6,4450.5,0.001]
[1755280033153,0.112,4450.6,4450.5,0.001]
[1755280033338,6.23888806,4450.6,4450.5,0.001]
[1755280033539,7.08745812,4450.6,4450.5,0.001]
[1755280033743,7.08645812,4450.6,4450.5,0.001]
[1755280034078,7.51545812,4450.6,4450.5,0.001]
[1755280034284,3.63645812,4450.6,4450.5,0.001]
[1755280034465,3.20745812,4450.6,4450.5,0.001]
[1755280034777,7.09445812,4450.6,4450.5,0.001]
[1755280035682,7.52345812,4450.6,4450.5,0.001]
[1755280035851,7.09445812,4450.6,4450.5,0.001]
[1755280036242,7.52345812,4450.6,4450.5,0.001]
[1755280036439,7.52345812,4450.6,4450.5,1e-08]
[1755280036440,12.25685335,4450.6,4450.5,1e-08]
[1755280036639,11.42504942,4450.6,4450.5,1e-08]
[1755280037087,12.12584942,4450.6,4450.5,1e-08]
[1755280037789,12.72603442,4450.6,4450.5,1e-08]
[1755280038126,4.70923442,4450.6,4450.5,1e-08]
[1755280038275,6.34238746,4450.6,4450.5,1e-08]
[1755280038474,6.82498269,4450.6,4450.5,1e-08]
[1755280038675,6.13288806,4450.6,4450.5,1e-08]
[1755280039295,6.13288806,4450.6,4450.5,0.72490001]
[1755280039697,3.881,4450.6,4450.5,1.18430001]
[1755280039901,6.12788806,4450.6,4450.5,0.72490001]
[1755280040099,6.96535619,4450.6,4450.5,1e-08]
[1755280043211,11.57696878,4450.6,4450.5,1e-08]
[1755280043416,11.7860947,4450.6,4450.5,1e-08]
[1755280043612,2.24714051,4450.1,4450.0,1e-08]
[1755280043778,6.14014051,4450.1,4450.0,1e-08]
[1755280043984,7.9379013,4450.1,4450.0,1e-08]
[1755280044204,10.9379013,4450.1,4450.0,1e-08]
[1755280044381,11.84781889,4450.1,4450.0,1e-08]
[1755280044581,13.0199873,4450.1,4450.0,1e-08]
[1755280044786,2.24736058,4449.7,4448.8,1e-08]
[1755280045017,2.24774663,4448.9,4448.8,1e-08]
[1755280045306,6.13674663,4448.9,4448.8,1e-08]
[1755280045515,6.56574663,4448.9,4448.8,1e-08]
[1755280045894,6.13674663,4448.9,4448.8,1e-08]
[1755280046223,7.49625547,4448.9,4448.8,1e-08]
[1755280046535,10.66122846,4448.9,4448.8,1e-08]
[1755280046696,2.24807845,4448.3,4447.5,0.001]
[1755280046897,2.24815089,4448.1,4447.5,0.001]
[1755280048216,6.33995089,4448.1,4448.0,1e-08]
[1755280048415,6.08561902,4448.1,4448.0,1e-08]
[1755280049199,0.429,4448.7,4448.0,1e-08]
[1755280049200,2.24797104,4448.5,4448.0,1e-08]
[1755280049394,1.69777701,4448.9,4448.0,1.18430001]
[1755280049395,0.93050884,4448.9,4448.0,1.18430001]
[1755280049634,0.20869413,4449.2,4448.1,0.7249]
[1755280049842,3.882,4449.4,4448.1,0.7249]
[1755280049996,2.24774733,4448.9,4448.2,0.4594]
[1755280050196,1.52670561,4450.0,4448.3,0.74738049]
[1755280050497,3.883,4450.0,4448.4,0.4594]
[1755280050700,2.24733253,4449.8,4448.6,2.24785634]
[1755280051009,2.24733253,4449.8,4448.7,1.1843]
[1755280051210,3.883,4450.0,4448.8,0.7249]
[1755280051398,3.883,4450.0,4448.9,0.4594]
[1755280051399,2.24726298,4449.9,4448.9,0.4594]
[1755280051601,2.24726298,4449.9,4449.0,0.7249]
[1755280052000,0.60229518,4451.0,4449.1,0.4594]
[1755280052200,2.24706611,4450.3,4449.2,0.7249]
[1755280052500,2.24706611,4450.3,4449.3,0.4594]
[1755280052722,2.24706611,4450.3,4449.4,0.34318839]
[1755280052925,2.24706611,4450.3,4449.5,0.7249]
[1755280053155,3.877,4450.5,4449.5,0.7249]
[1755280053360,3.875,4451.1,4449.6,0.4594]
[1755280053572,2.24673351,4451.0,4449.8,2.24727515]
[1755280053868,0.16707464,4451.3,4449.9,1.1843]
[1755280054168,0.002,4451.5,4450.1,0.55]
[1755280054320,0.002,4451.5,4450.2,2.24709001]
[1755280054517,0.002,4451.5,4450.5,2.24689183]
[1755280054716,0.002,4450.6,4450.5,2.24689183]
[1755280054915,0.002,4450.6,4450.5,1.1843]
[1755280055226,0.002,4450.6,4449.9,0.7249]
[1755280055572,0.002,4450.6,4449.7,0.12067744]
[1755280055776,0.002,4450.6,4448.9,3.55]
[1755280055777,0.002,4450.6,4450.4,0.7249]
[1755280055967,0.002,4450.6,4450.3,0.4594]
[1755280056284,0.002,4450.6,4450.5,0.7249]
[1755280057082,0.002,4450.6,4450.1,0.7392]
[1755280057385,0.002,4450.6,4449.5,2.2474322]
[1755280057386,0.002,4450.6,4450.5,0.6892]
[1755280057788,0.002,4450.6,4449.8,2.24727722]
[1755280058091,0.002,4450.6,4449.9,0.26878772]
[1755280058289,0.002,4450.6,4450.3,0.112]
[1755280058949,0.002,4450.6,4450.3,0.5526]
[1755280059183,0.002,4450.6,4450.4,0.7392]
[1755280059579,0.002,4450.6,4450.3,0.112]
[1755280059876,4.4283,4450.5,4449.0,0.7402]
[1755280060076,2.35908649,4450.3,4449.1,0.4406]
[1755280060379,2.24703952,4450.3,4449.9,0.112]
[1755280060577,2.35893854,4450.5,4449.9,0.112]
[1755280060578,2.35894827,4450.5,4450.0,0.7392]
[1755280060793,2.24713244,4450.2,4450.0,0.7392]
[1755280061289,3.857,4450.4,4450.1,0.7392]
[1755280061674,3.855,4450.4,4450.1,0.7392]
[1755280061879,2.24705144,4450.3,4450.1,0.7392]
[1755280062078,2.24709673,4450.2,4449.9,0.112]
[1755280062457,2.24705617,4450.3,4449.9,0.112]